[Event "December 12 Early 2023"]
[Site "https://www.chess.com"]
[Date "2023.12.12"]
[Round "4"]
[White "Rakhmanov, Aleksandr"]
[Black "Assylov, Miras"]
[Result "0-1"]
[Board "46"]
[TimeControl "180+1"]
[WhiteFideId "4173708"]
[BlackFideId "13728873"]
[WhiteElo "2879"]
[BlackElo "2584"]
[WhiteTeam "FID"]
[BlackTeam "KAZ"]
[WhiteClock "0:00:11"]
[BlackClock "0:00:09"]

1. d4 {[%clk 0:03:00]}  Nf6 {[%clk 0:02:54]} 2. Nf3 {[%clk 0:02:55]}  g6 {[%clk 0:02:52]} 3. g3 {[%clk 0:02:55]}  Bg7 {[%clk 0:02:52]} 4. Bg2 {[%clk 0:02:55]}  O-O {[%clk 0:02:52]} 5. O-O {[%clk 0:02:55]}  d6 {[%clk 0:02:53]} 6. Re1 {[%clk 0:02:54]}  Nbd7 {[%clk 0:02:34]} 7. e4 {[%clk 0:02:53]}  e5 {[%clk 0:02:35]} 8. Nc3 {[%clk 0:02:47]}  c6 {[%clk 0:02:35]} 9. h3 {[%clk 0:02:46]}  Qe7 {[%clk 0:02:32]} 10. a4 {[%clk 0:02:46]}  a5 {[%clk 0:02:28]} 11. Bg5 {[%clk 0:02:42]}  h6 {[%clk 0:02:27]} 12. Be3 {[%clk 0:02:42]}  b6 {[%clk 0:02:16]} 13. Qd2 {[%clk 0:02:41]}  Kh7 {[%clk 0:02:16]} 14. Rad1 {[%clk 0:02:38]}  Bb7 {[%clk 0:02:14]} 15. b3 {[%clk 0:02:39]}  Rad8 {[%clk 0:02:11]} 16. Nh2 {[%clk 0:02:38]}  Rfe8 {[%clk 0:01:45]} 17. Nf3 {[%clk 0:02:25]}  Qf8 {[%clk 0:01:42]} 18. dxe5 {[%clk 0:02:23]}  dxe5 {[%clk 0:01:40]} 19. Qd6 {[%clk 0:02:22]}  Qxd6 {[%clk 0:01:33]} 20. Rxd6 {[%clk 0:02:23]}  Bf8 {[%clk 0:01:33]} 21. Rd3 {[%clk 0:02:04]}  Ba6 {[%clk 0:01:33]} 22. Rdd1 {[%clk 0:02:01]}  Bb4 {[%clk 0:01:32]} 23. Bd2 {[%clk 0:02:00]}  Nc5 {[%clk 0:01:31]} 24. Nb1 {[%clk 0:01:56]}  Ncxe4 {[%clk 0:01:15]} 25. Bxb4 {[%clk 0:01:52]}  Rxd1 {[%clk 0:01:15]} 26. Rxd1 {[%clk 0:01:53]}  axb4 {[%clk 0:01:15]} 27. Bf1 {[%clk 0:01:36]}  Bxf1 {[%clk 0:01:06]} 28. Kxf1 {[%clk 0:01:37]}  Kg7 {[%clk 0:01:02]} 29. Ke1 {[%clk 0:01:35]}  Nd5 {[%clk 0:00:48]} 30. Ng1 {[%clk 0:01:28]}  f5 {[%clk 0:00:38]} 31. Ne2 {[%clk 0:01:28]}  Ng5 {[%clk 0:00:35]} 32. h4 {[%clk 0:01:27]}  Nf3+ {[%clk 0:00:30]} 33. Kf1 {[%clk 0:01:27]}  e4 {[%clk 0:00:30]} 34. Nd2 {[%clk 0:01:24]}  Nh2+ {[%clk 0:00:20]} 35. Kg1 {[%clk 0:01:19]}  Ng4 {[%clk 0:00:21]} 36. Nc4 {[%clk 0:01:16]}  Ne5 {[%clk 0:00:13]} 37. Nxe5 {[%clk 0:00:53]}  Rxe5 {[%clk 0:00:14]} 38. Nd4 {[%clk 0:00:48]}  Ne7 {[%clk 0:00:15]} 39. Kf1 {[%clk 0:00:37]}  Rd5 {[%clk 0:00:14]} 40. Ke2 {[%clk 0:00:37]}  Kf6 {[%clk 0:00:14]} 41. f4 {[%clk 0:00:30]}  exf3+ {[%clk 0:00:07]} 42. Nxf3 {[%clk 0:00:31]}  Rxd1 {[%clk 0:00:07]} 43. Kxd1 {[%clk 0:00:31]}  Nd5 {[%clk 0:00:07]} 44. Ke2 {[%clk 0:00:31]}  g5 {[%clk 0:00:07]} 45. hxg5+ {[%clk 0:00:31]}  hxg5 {[%clk 0:00:08]} 46. Nd4 {[%clk 0:00:31]}  c5 {[%clk 0:00:08]} 47. Nc6 {[%clk 0:00:28]}  Nc3+ {[%clk 0:00:07]} 48. Kf3 {[%clk 0:00:28]}  Ne4 {[%clk 0:00:05]} 49. Na7 {[%clk 0:00:22]}  Nd6 {[%clk 0:00:03]} 50. Nc6 {[%clk 0:00:21]}  Ke6 {[%clk 0:00:03]} 51. Ke3 {[%clk 0:00:17]}  Kd5 {[%clk 0:00:03]} 52. Ne7+ {[%clk 0:00:17]}  Ke6 {[%clk 0:00:04]} 53. Nc6 {[%clk 0:00:17]}  Ne4 {[%clk 0:00:03]} 54. g4 {[%clk 0:00:16]}  Nd6 {[%clk 0:00:03]} 55. gxf5+ {[%clk 0:00:16]}  Nxf5+ {[%clk 0:00:04]} 56. Ke4 {[%clk 0:00:15]}  Nd6+ {[%clk 0:00:04]} 57. Kf3 {[%clk 0:00:15]}  Nf5 {[%clk 0:00:04]} 58. Ke4 {[%clk 0:00:15]}  g4 {[%clk 0:00:03]} 59. Nd8+ {[%clk 0:00:10]}  Kd7 {[%clk 0:00:04]} 60. Nf7 {[%clk 0:00:06]}  Nd6+ {[%clk 0:00:02]} 61. Kf4 {[%clk 0:00:04]}  Nxf7 {[%clk 0:00:02]} 62. Kxg4 {[%clk 0:00:04]}  Nd6 {[%clk 0:00:02]} 63. Kf4 {[%clk 0:00:05]}  Ke6 {[%clk 0:00:03]} 64. Ke3 {[%clk 0:00:05]}  Kd5 {[%clk 0:00:03]} 65. Kd3 {[%clk 0:00:06]}  Nb7 {[%clk 0:00:03]} 66. c3 {[%clk 0:00:06]}  Na5 {[%clk 0:00:03]} 67. cxb4 {[%clk 0:00:06]}  cxb4 {[%clk 0:00:03]} 68. Kc2 {[%clk 0:00:06]}  Kd4 {[%clk 0:00:04]} 69. Kb2 {[%clk 0:00:07]}  Kd3 {[%clk 0:00:04]} 70. Ka2 {[%clk 0:00:08]}  Kc3 {[%clk 0:00:04]} 71. Kb1 {[%clk 0:00:05]}  Kxb3 {[%clk 0:00:05]} 72. Ka1 {[%clk 0:00:05]}  Nc4 {[%clk 0:00:05]} 73. Kb1 {[%clk 0:00:06]}  Kxa4 {[%clk 0:00:06]} 74. Ka1 {[%clk 0:00:06]}  b3 {[%clk 0:00:06]} 75. Kb1 {[%clk 0:00:07]}  Kb4 {[%clk 0:00:06]} 76. Ka1 {[%clk 0:00:08]}  Kc3 {[%clk 0:00:07]} 77. Kb1 {[%clk 0:00:09]}  Nd2+ {[%clk 0:00:07]} 78. Ka1 {[%clk 0:00:10]}  b2+ {[%clk 0:00:08]} 79. Ka2 {[%clk 0:00:10]}  b1=Q+ {[%clk 0:00:08]} 80. Ka3 {[%clk 0:00:11]}  Qb3# {[%clk 0:00:09]} 0-1

[Event "December 12 Early 2023"]
[Site "https://www.chess.com"]
[Date "2023.12.12"]
[Round "4"]
[White "Kozusek, Daniel"]
[Black "Materia, Marco"]
[Result "0-1"]
[Board "52"]
[TimeControl "180+1"]
[WhiteFideId "349500"]
[BlackFideId "45150451"]
[WhiteElo "2576"]
[BlackElo "2826"]
[WhiteTeam "WLS"]
[BlackTeam "FRA"]
[WhiteClock "0:01:46"]
[BlackClock "0:02:03"]

1. d4 {[%clk 0:03:00]}  Nf6 {[%clk 0:02:59]} 2. c4 {[%clk 0:02:59]}  e6 {[%clk 0:02:59]} 3. Nf3 {[%clk 0:02:59]}  d5 {[%clk 0:02:59]} 4. Nc3 {[%clk 0:02:59]}  Be7 {[%clk 0:02:59]} 5. Bf4 {[%clk 0:02:59]}  O-O {[%clk 0:02:59]} 6. e3 {[%clk 0:03:00]}  Nbd7 {[%clk 0:02:59]} 7. c5 {[%clk 0:02:58]}  c6 {[%clk 0:02:52]} 8. Bd3 {[%clk 0:02:49]}  b6 {[%clk 0:02:32]} 9. b4 {[%clk 0:02:48]}  bxc5 {[%clk 0:02:33]} 10. bxc5 {[%clk 0:02:46]}  Qa5 {[%clk 0:02:33]} 11. Qd2 {[%clk 0:02:42]}  Ba6 {[%clk 0:02:28]} 12. Nxd5 {[%clk 0:02:26]}  Qxd2+ {[%clk 0:02:25]} 13. Kxd2 {[%clk 0:02:27]}  Nxd5 {[%clk 0:02:14]} 14. Bxa6 {[%clk 0:02:27]}  Nxf4 {[%clk 0:02:15]} 15. exf4 {[%clk 0:02:27]}  Rfd8 {[%clk 0:02:14]} 16. Kc3 {[%clk 0:02:22]}  Rab8 {[%clk 0:02:10]} 17. Rab1 {[%clk 0:02:20]}  Nf6 {[%clk 0:02:09]} 18. Bc4 {[%clk 0:02:19]}  Ne4+ {[%clk 0:02:08]} 19. Kc2 {[%clk 0:02:12]}  Nxf2 {[%clk 0:02:08]} 20. Rxb8 {[%clk 0:02:03]}  Rxb8 {[%clk 0:02:07]} 21. Rf1 {[%clk 0:02:02]}  Ng4 {[%clk 0:02:05]} 22. Kc3 {[%clk 0:01:48]}  Ne3 {[%clk 0:02:03]} 23. Rf2 {[%clk 0:01:46]}  Nd1+ {[%clk 0:02:03]} 0-1

[Event "December 12 Early 2023"]
[Site "https://www.chess.com"]
[Date "2023.12.12"]
[Round "4"]
[White "Kunin, Vitaly"]
[Black "Yeremyan, Alen"]
[Result "0-1"]
[Board "53"]
[TimeControl "180+1"]
[WhiteFideId "4128737"]
[BlackFideId "13308998"]
[WhiteElo "2571"]
[BlackElo "2823"]
[WhiteTeam "GER"]
[BlackTeam "ARM"]
[WhiteClock "0:00:00"]
[BlackClock "0:01:40"]

1. e4 {[%clk 0:03:00]}  Nf6 {[%clk 0:02:58]} 2. d3 {[%clk 0:02:41]}  d6 {[%clk 0:02:58]} 3. Nd2 {[%clk 0:02:40]}  g6 {[%clk 0:02:59]} 4. Ngf3 {[%clk 0:02:40]}  Bg7 {[%clk 0:03:00]} 5. Be2 {[%clk 0:02:38]}  O-O {[%clk 0:02:59]} 6. c3 {[%clk 0:02:39]}  e5 {[%clk 0:03:00]} 7. O-O {[%clk 0:02:40]}  h6 {[%clk 0:03:00]} 8. h3 {[%clk 0:02:41]}  Nc6 {[%clk 0:03:01]} 9. Qc2 {[%clk 0:02:42]}  a5 {[%clk 0:03:01]} 10. Rd1 {[%clk 0:02:43]}  Nd7 {[%clk 0:03:02]} 11. Nf1 {[%clk 0:02:44]}  Nc5 {[%clk 0:03:00]} 12. Ng3 {[%clk 0:02:45]}  f5 {[%clk 0:03:00]} 13. exf5 {[%clk 0:02:44]}  gxf5 {[%clk 0:03:01]} 14. d4 {[%clk 0:02:43]}  f4 {[%clk 0:02:50]} 15. Nh5 {[%clk 0:02:38]}  Bf5 {[%clk 0:02:49]} 16. Qd2 {[%clk 0:02:31]}  Ne4 {[%clk 0:02:49]} 17. Qe1 {[%clk 0:02:29]}  Qe8 {[%clk 0:02:36]} 18. Nxg7 {[%clk 0:02:26]}  Kxg7 {[%clk 0:02:37]} 19. dxe5 {[%clk 0:02:26]}  dxe5 {[%clk 0:02:35]} 20. Nh4 {[%clk 0:02:25]}  Bh7 {[%clk 0:02:28]} 21. Bd3 {[%clk 0:02:24]}  Nd6 {[%clk 0:02:29]} 22. Bxh7 {[%clk 0:02:23]}  Kxh7 {[%clk 0:02:30]} 23. Qe2 {[%clk 0:02:04]}  Rg8 {[%clk 0:02:24]} 24. Rxd6 {[%clk 0:01:07]}  cxd6 {[%clk 0:02:21]} 25. Qd3+ {[%clk 0:01:08]}  Kh8 {[%clk 0:01:52]} 26. Qxd6 {[%clk 0:01:07]}  Qh5 {[%clk 0:01:52]} 27. Nf3 {[%clk 0:01:00]}  Rad8 {[%clk 0:01:46]} 28. Qe6 {[%clk 0:00:00]}  Rg6 {[%clk 0:01:40]} 0-1

[Event "December 12 Early 2023"]
[Site "https://www.chess.com"]
[Date "2023.12.12"]
[Round "4"]
[White "Brodsky, David"]
[Black "Aghasiyev, Kamal"]
[Result "1/2-1/2"]
[Board "55"]
[TimeControl "180+1"]
[WhiteFideId "2073250"]
[BlackFideId "13402854"]
[WhiteElo "2820"]
[BlackElo "2569"]
[WhiteTeam "USA"]
[BlackTeam "AZE"]
[WhiteClock "0:00:04"]
[BlackClock "0:00:26"]

1. d4 {[%clk 0:03:00]}  d5 {[%clk 0:02:58]} 2. Nf3 {[%clk 0:03:01]}  Nf6 {[%clk 0:02:57]} 3. Bf4 {[%clk 0:03:00]}  e6 {[%clk 0:02:55]} 4. e3 {[%clk 0:03:00]}  Bd6 {[%clk 0:02:55]} 5. Nbd2 {[%clk 0:02:59]}  O-O {[%clk 0:02:53]} 6. Ne5 {[%clk 0:02:59]}  c5 {[%clk 0:02:47]} 7. c3 {[%clk 0:02:59]}  Qc7 {[%clk 0:02:44]} 8. Bd3 {[%clk 0:02:53]}  Nbd7 {[%clk 0:02:41]} 9. Ndf3 {[%clk 0:02:44]}  Ne4 {[%clk 0:02:39]} 10. Qc2 {[%clk 0:02:30]}  f5 {[%clk 0:02:16]} 11. Nxd7 {[%clk 0:02:21]}  Bxd7 {[%clk 0:02:14]} 12. Bxd6 {[%clk 0:02:21]}  Qxd6 {[%clk 0:02:14]} 13. Bxe4 {[%clk 0:02:18]}  fxe4 {[%clk 0:02:10]} 14. Ne5 {[%clk 0:02:18]}  Bb5 {[%clk 0:02:10]} 15. O-O-O {[%clk 0:02:13]}  cxd4 {[%clk 0:02:08]} 16. exd4 {[%clk 0:02:13]}  Rac8 {[%clk 0:02:04]} 17. Kb1 {[%clk 0:02:12]}  Rf6 {[%clk 0:01:47]} 18. f3 {[%clk 0:02:04]}  Rcf8 {[%clk 0:01:39]} 19. Rhe1 {[%clk 0:01:41]}  exf3 {[%clk 0:01:20]} 20. Nxf3 {[%clk 0:01:39]}  Be8 {[%clk 0:01:17]} 21. Ka1 {[%clk 0:01:33]}  Bg6 {[%clk 0:01:16]} 22. Qb3 {[%clk 0:01:18]}  b6 {[%clk 0:01:10]} 23. Re5 {[%clk 0:01:03]}  Be4 {[%clk 0:01:01]} 24. Ng5 {[%clk 0:00:47]}  Bf5 {[%clk 0:00:45]} 25. a3 {[%clk 0:00:25]}  h6 {[%clk 0:00:44]} 26. Nf3 {[%clk 0:00:25]}  Be4 {[%clk 0:00:40]} 27. Re1 {[%clk 0:00:25]}  Rg6 {[%clk 0:00:31]} 28. Nh4 {[%clk 0:00:11]}  Rgf6 {[%clk 0:00:27]} 29. Nf3 {[%clk 0:00:09]}  Rg6 {[%clk 0:00:27]} 30. Nh4 {[%clk 0:00:09]}  Rgf6 {[%clk 0:00:26]} 31. Nf3 {[%clk 0:00:04]} 1/2-1/2

[Event "December 12 Early 2023"]
[Site "https://www.chess.com"]
[Date "2023.12.12"]
[Round "4"]
[White "Yelisieiev, Yevhenii"]
[Black "Korchmar, Vasiliy"]
[Result "1-0"]
[Board "59"]
[TimeControl "180+1"]
[WhiteFideId "14139642"]
[BlackFideId "24131750"]
[WhiteElo "2559"]
[BlackElo "2797"]
[WhiteTeam "GER"]
[BlackTeam "RUS"]
[WhiteClock "0:00:15"]
[BlackClock "0:00:01"]

1. d4 {[%clk 0:03:00]}  Nf6 {[%clk 0:02:59]} 2. Nf3 {[%clk 0:03:00]}  d5 {[%clk 0:03:00]} 3. c4 {[%clk 0:02:59]}  e6 {[%clk 0:03:00]} 4. Nc3 {[%clk 0:02:59]}  dxc4 {[%clk 0:03:00]} 5. e4 {[%clk 0:02:57]}  b5 {[%clk 0:02:59]} 6. e5 {[%clk 0:02:57]}  Nd5 {[%clk 0:02:59]} 7. Nxb5 {[%clk 0:02:57]}  Nb6 {[%clk 0:02:59]} 8. Be2 {[%clk 0:02:57]}  Qd7 {[%clk 0:02:59]} 9. a4 {[%clk 0:02:53]}  Bb7 {[%clk 0:02:42]} 10. O-O {[%clk 0:02:53]}  a5 {[%clk 0:02:36]} 11. Be3 {[%clk 0:02:44]}  Nc6 {[%clk 0:02:22]} 12. Nd2 {[%clk 0:02:34]}  Be7 {[%clk 0:01:52]} 13. Rc1 {[%clk 0:02:31]}  O-O {[%clk 0:01:50]} 14. Nxc4 {[%clk 0:02:30]}  Nd5 {[%clk 0:01:49]} 15. Nd2 {[%clk 0:02:07]}  Ncb4 {[%clk 0:01:36]} 16. Nb3 {[%clk 0:02:01]}  Nxe3 {[%clk 0:01:18]} 17. fxe3 {[%clk 0:02:00]}  Rfc8 {[%clk 0:00:56]} 18. Nc5 {[%clk 0:01:44]}  Bxc5 {[%clk 0:00:56]} 19. Rxc5 {[%clk 0:01:44]}  Be4 {[%clk 0:00:48]} 20. Bf3 {[%clk 0:01:38]}  Bxf3 {[%clk 0:00:47]} 21. Qxf3 {[%clk 0:01:38]}  Rab8 {[%clk 0:00:40]} 22. Rfc1 {[%clk 0:00:55]}  c6 {[%clk 0:00:40]} 23. Nd6 {[%clk 0:00:51]}  Rf8 {[%clk 0:00:40]} 24. Rxa5 {[%clk 0:00:37]}  f6 {[%clk 0:00:38]} 25. Qe4 {[%clk 0:00:24]}  fxe5 {[%clk 0:00:33]} 26. dxe5 {[%clk 0:00:24]}  Nd5 {[%clk 0:00:30]} 27. Rf1 {[%clk 0:00:20]}  Rxf1+ {[%clk 0:00:15]} 28. Kxf1 {[%clk 0:00:21]}  Qd8 {[%clk 0:00:12]} 29. Ra7 {[%clk 0:00:20]}  Qg5 {[%clk 0:00:08]} 30. Nc4 {[%clk 0:00:17]}  Rf8+ {[%clk 0:00:08]} 31. Kg1 {[%clk 0:00:16]}  Qh5 {[%clk 0:00:05]} 32. h3 {[%clk 0:00:16]}  Qd1+ {[%clk 0:00:05]} 33. Kh2 {[%clk 0:00:16]}  Qe2 {[%clk 0:00:02]} 34. Qg4 {[%clk 0:00:15]}  Qd3 {[%clk 0:00:01]} 35. Qxg7# {[%clk 0:00:15]} 1-0

[Event "December 12 Early 2023"]
[Site "https://www.chess.com"]
[Date "2023.12.12"]
[Round "4"]
[White "Dragnev, Valentin"]
[Black "Kononenko, Dmitry"]
[Result "1-0"]
[Board "60"]
[TimeControl "180+1"]
[WhiteFideId "1634852"]
[BlackFideId "14113538"]
[WhiteElo "2797"]
[BlackElo "2549"]
[WhiteTeam "AUT"]
[BlackTeam "UKR"]
[WhiteClock "0:00:25"]
[BlackClock "0:00:00"]

1. d4 {[%clk 0:02:55]}  d5 {[%clk 0:02:38]} 2. Nf3 {[%clk 0:02:56]}  Nf6 {[%clk 0:02:36]} 3. Bf4 {[%clk 0:02:56]}  c6 {[%clk 0:02:35]} 4. e3 {[%clk 0:02:55]}  Qb6 {[%clk 0:02:35]} 5. b3 {[%clk 0:02:53]}  Bg4 {[%clk 0:02:30]} 6. Be2 {[%clk 0:02:45]}  Nbd7 {[%clk 0:02:29]} 7. h3 {[%clk 0:02:45]}  Bxf3 {[%clk 0:02:26]} 8. Bxf3 {[%clk 0:02:46]}  Ne4 {[%clk 0:02:23]} 9. O-O {[%clk 0:02:41]}  e6 {[%clk 0:02:23]} 10. Bxe4 {[%clk 0:02:34]}  dxe4 {[%clk 0:02:22]} 11. Nd2 {[%clk 0:02:34]}  Nf6 {[%clk 0:02:22]} 12. Be5 {[%clk 0:02:30]}  Bb4 {[%clk 0:02:18]} 13. Bxf6 {[%clk 0:02:30]}  Bxd2 {[%clk 0:02:12]} 14. Bxg7 {[%clk 0:02:30]}  Rg8 {[%clk 0:02:12]} 15. Bf6 {[%clk 0:02:07]}  Bc3 {[%clk 0:02:11]} 16. Qh5 {[%clk 0:02:06]}  Bxa1 {[%clk 0:01:50]} 17. Qxh7 {[%clk 0:02:06]}  Rf8 {[%clk 0:01:48]} 18. Bg7 {[%clk 0:01:54]}  O-O-O {[%clk 0:01:37]} 19. Bxf8 {[%clk 0:01:54]}  Rxf8 {[%clk 0:01:38]} 20. Rxa1 {[%clk 0:01:54]}  Qa5 {[%clk 0:01:32]} 21. Qxe4 {[%clk 0:01:49]}  Qc3 {[%clk 0:01:30]} 22. Rf1 {[%clk 0:01:49]}  Rg8 {[%clk 0:01:30]} 23. a4 {[%clk 0:01:47]}  a6 {[%clk 0:01:24]} 24. g3 {[%clk 0:01:46]}  Kb8 {[%clk 0:01:25]} 25. Kg2 {[%clk 0:01:46]}  Qb4 {[%clk 0:01:23]} 26. h4 {[%clk 0:01:47]}  Qe7 {[%clk 0:01:22]} 27. h5 {[%clk 0:01:45]}  Ka8 {[%clk 0:01:20]} 28. h6 {[%clk 0:01:45]}  f5 {[%clk 0:01:20]} 29. Qe5 {[%clk 0:01:39]}  Rg6 {[%clk 0:01:15]} 30. Rh1 {[%clk 0:01:38]}  Qh7 {[%clk 0:01:15]} 31. Qf4 {[%clk 0:01:27]}  Rg4 {[%clk 0:01:15]} 32. Qd6 {[%clk 0:01:27]}  Rg6 {[%clk 0:01:14]} 33. b4 {[%clk 0:01:20]}  Ka7 {[%clk 0:01:04]} 34. Qc5+ {[%clk 0:01:16]}  Ka8 {[%clk 0:01:02]} 35. b5 {[%clk 0:01:15]}  cxb5 {[%clk 0:01:01]} 36. axb5 {[%clk 0:01:15]}  e5 {[%clk 0:01:02]} 37. b6 {[%clk 0:00:58]}  Rg8 {[%clk 0:01:00]} 38. Qxe5 {[%clk 0:00:54]}  f4 {[%clk 0:01:00]} 39. Qxf4 {[%clk 0:00:53]}  Qxc2 {[%clk 0:00:53]} 40. h7 {[%clk 0:00:53]}  Rh8 {[%clk 0:00:53]} 41. Rh6 {[%clk 0:00:42]}  Qc8 {[%clk 0:00:38]} 42. d5 {[%clk 0:00:33]}  Qd8 {[%clk 0:00:36]} 43. e4 {[%clk 0:00:32]}  a5 {[%clk 0:00:36]} 44. Qd2 {[%clk 0:00:28]}  Kb8 {[%clk 0:00:29]} 45. Qxa5 {[%clk 0:00:28]}  Qg5 {[%clk 0:00:28]} 46. Qa7+ {[%clk 0:00:27]}  Kc8 {[%clk 0:00:28]} 47. Qa8+ {[%clk 0:00:28]}  Kd7 {[%clk 0:00:29]} 48. Qxb7+ {[%clk 0:00:29]}  Ke8 {[%clk 0:00:29]} 49. Qc8+ {[%clk 0:00:28]}  Kf7 {[%clk 0:00:29]} 50. Qxh8 {[%clk 0:00:24]}  Qxh6 {[%clk 0:00:29]} 51. Qg8+ {[%clk 0:00:25]}  Ke7 {[%clk 0:00:27]} 52. Qe6+ {[%clk 0:00:24]}  Qxe6 {[%clk 0:00:27]} 53. dxe6 {[%clk 0:00:25]}  Kd6 {[%clk 0:00:27]} 54. h8=Q {[%clk 0:00:25]}  Kc5 {[%clk 0:00:27]} 55. b7 {[%clk 0:00:25]}  Kb5 {[%clk 0:00:28]} 56. b8=Q+ {[%clk 0:00:25]}  Kc6 {[%clk 0:00:00]} 57. e7 {[%clk 0:00:25]} 1-0

[Event "December 12 Early 2023"]
[Site "https://www.chess.com"]
[Date "2023.12.12"]
[Round "4"]
[White "Tatarinov, Dmitry"]
[Black "Santos Flores, Alberto"]
[Result "1/2-1/2"]
[Board "62"]
[TimeControl "180+1"]
[WhiteFideId "24160067"]
[BlackFideId "3601234"]
[WhiteElo "2785"]
[BlackElo "2549"]
[WhiteTeam "RUS"]
[BlackTeam "ECU"]
[WhiteClock "0:01:17"]
[BlackClock "0:00:28"]

1. Nf3 {[%clk 0:03:00]}  Nf6 {[%clk 0:02:58]} 2. g3 {[%clk 0:03:00]}  d5 {[%clk 0:02:58]} 3. Bg2 {[%clk 0:03:01]}  Bf5 {[%clk 0:02:57]} 4. O-O {[%clk 0:03:02]}  c6 {[%clk 0:02:57]} 5. d3 {[%clk 0:03:02]}  h6 {[%clk 0:02:55]} 6. Nbd2 {[%clk 0:03:03]}  e6 {[%clk 0:02:55]} 7. b3 {[%clk 0:03:03]}  a5 {[%clk 0:02:54]} 8. Bb2 {[%clk 0:03:02]}  a4 {[%clk 0:02:54]} 9. c4 {[%clk 0:03:02]}  Nbd7 {[%clk 0:02:52]} 10. Qc2 {[%clk 0:02:58]}  Be7 {[%clk 0:02:51]} 11. Rfe1 {[%clk 0:02:57]}  Bh7 {[%clk 0:02:48]} 12. Ne5 {[%clk 0:02:55]}  Nxe5 {[%clk 0:02:46]} 13. Bxe5 {[%clk 0:02:55]}  O-O {[%clk 0:02:46]} 14. Rab1 {[%clk 0:02:52]}  axb3 {[%clk 0:02:45]} 15. axb3 {[%clk 0:02:52]}  Nd7 {[%clk 0:02:45]} 16. Bc3 {[%clk 0:02:52]}  Bf6 {[%clk 0:02:45]} 17. b4 {[%clk 0:02:52]}  Bxc3 {[%clk 0:02:44]} 18. Qxc3 {[%clk 0:02:52]}  Qf6 {[%clk 0:02:44]} 19. Qxf6 {[%clk 0:02:42]}  Nxf6 {[%clk 0:02:44]} 20. cxd5 {[%clk 0:02:39]}  cxd5 {[%clk 0:02:43]} 21. Nb3 {[%clk 0:02:35]}  Rfc8 {[%clk 0:02:40]} 22. Rec1 {[%clk 0:02:33]}  Kf8 {[%clk 0:02:39]} 23. f4 {[%clk 0:02:33]}  Ke7 {[%clk 0:02:38]} 24. Nd4 {[%clk 0:02:32]}  Kd7 {[%clk 0:02:31]} 25. Bf3 {[%clk 0:02:30]}  Rxc1+ {[%clk 0:02:30]} 26. Rxc1 {[%clk 0:02:30]}  Ra2 {[%clk 0:02:29]} 27. g4 {[%clk 0:02:23]}  Rb2 {[%clk 0:02:26]} 28. Nc2 {[%clk 0:01:57]}  g5 {[%clk 0:02:12]} 29. fxg5 {[%clk 0:01:54]}  hxg5 {[%clk 0:02:13]} 30. Kf2 {[%clk 0:01:54]}  Kd6 {[%clk 0:02:04]} 31. Ke3 {[%clk 0:01:55]}  e5 {[%clk 0:01:54]} 32. Kd2 {[%clk 0:01:54]}  e4 {[%clk 0:01:54]} 33. dxe4 {[%clk 0:01:47]}  dxe4 {[%clk 0:01:29]} 34. Bh1 {[%clk 0:01:46]}  e3+ {[%clk 0:01:28]} 35. Kc3 {[%clk 0:01:46]}  Rxc2+ {[%clk 0:01:19]} 36. Rxc2 {[%clk 0:01:46]}  Bxc2 {[%clk 0:01:20]} 37. Kxc2 {[%clk 0:01:46]}  Nxg4 {[%clk 0:01:20]} 38. h3 {[%clk 0:01:47]}  Nf2 {[%clk 0:01:18]} 39. Bxb7 {[%clk 0:01:46]}  Nxh3 {[%clk 0:01:17]} 40. Kd3 {[%clk 0:01:46]}  Nf4+ {[%clk 0:00:57]} 41. Kxe3 {[%clk 0:01:45]}  Nd5+ {[%clk 0:00:57]} 42. Ke4 {[%clk 0:01:25]}  Nxb4 {[%clk 0:00:55]} 43. Kf5 {[%clk 0:01:26]}  Nc2 {[%clk 0:00:35]} 44. Kxg5 {[%clk 0:01:23]}  Ke5 {[%clk 0:00:34]} 45. Kg4 {[%clk 0:01:20]}  Nd4 {[%clk 0:00:31]} 46. Ba6 {[%clk 0:01:17]}  Ke4 {[%clk 0:00:29]} 47. Bd3+ {[%clk 0:01:15]}  Ke3 {[%clk 0:00:29]} 48. Kg5 {[%clk 0:01:15]}  Nxe2 {[%clk 0:00:27]} 49. Bxe2 {[%clk 0:01:15]}  Kxe2 {[%clk 0:00:28]} 50. Kf6 {[%clk 0:01:16]}  Ke3 {[%clk 0:00:28]} 51. Kxf7 {[%clk 0:01:17]} 1/2-1/2

[Event "December 12 Early 2023"]
[Site "https://www.chess.com"]
[Date "2023.12.12"]
[Round "4"]
[White "Mendez Fortes, Eduardo Jesus"]
[Black "Lagarde, Maxime"]
[Result "1/2-1/2"]
[Board "63"]
[TimeControl "180+1"]
[WhiteFideId "3502376"]
[BlackFideId "662399"]
[WhiteElo "2613"]
[BlackElo "2775"]
[WhiteTeam "CUB"]
[BlackTeam "FRA"]
[WhiteClock "0:01:44"]
[BlackClock "0:00:47"]

1. e4 {[%clk 0:03:00]}  Nc6 {[%clk 0:02:53]} 2. Nf3 {[%clk 0:03:00]}  e5 {[%clk 0:02:49]} 3. Bb5 {[%clk 0:03:00]}  a6 {[%clk 0:02:49]} 4. Ba4 {[%clk 0:03:00]}  Nf6 {[%clk 0:02:48]} 5. O-O {[%clk 0:03:01]}  Be7 {[%clk 0:02:47]} 6. Re1 {[%clk 0:03:01]}  b5 {[%clk 0:02:45]} 7. Bb3 {[%clk 0:03:02]}  O-O {[%clk 0:02:46]} 8. c3 {[%clk 0:03:02]}  d6 {[%clk 0:02:45]} 9. h3 {[%clk 0:03:02]}  Bb7 {[%clk 0:02:43]} 10. d4 {[%clk 0:03:01]}  Re8 {[%clk 0:02:39]} 11. Nbd2 {[%clk 0:03:00]}  Bf8 {[%clk 0:02:37]} 12. a3 {[%clk 0:03:00]}  h6 {[%clk 0:02:34]} 13. Bc2 {[%clk 0:02:59]}  a5 {[%clk 0:02:22]} 14. a4 {[%clk 0:02:55]}  exd4 {[%clk 0:02:10]} 15. axb5 {[%clk 0:02:33]}  dxc3 {[%clk 0:02:10]} 16. bxc3 {[%clk 0:02:29]}  Ne5 {[%clk 0:02:03]} 17. c4 {[%clk 0:02:20]}  Nxf3+ {[%clk 0:01:48]} 18. Qxf3 {[%clk 0:02:15]}  g6 {[%clk 0:01:44]} 19. Bb2 {[%clk 0:02:15]}  Bg7 {[%clk 0:01:45]} 20. Bc3 {[%clk 0:02:11]}  a4 {[%clk 0:01:40]} 21. Rxa4 {[%clk 0:02:04]}  Rxa4 {[%clk 0:01:39]} 22. Bxa4 {[%clk 0:02:05]}  Nxe4 {[%clk 0:01:29]} 23. Nxe4 {[%clk 0:02:01]}  Rxe4 {[%clk 0:01:22]} 24. Rxe4 {[%clk 0:01:54]}  Bxe4 {[%clk 0:01:23]} 25. Qxe4 {[%clk 0:01:54]}  Bxc3 {[%clk 0:01:23]} 26. Qe3 {[%clk 0:01:53]}  Bg7 {[%clk 0:01:06]} 27. Bc2 {[%clk 0:01:53]}  h5 {[%clk 0:01:00]} 28. Be4 {[%clk 0:01:53]}  Be5 {[%clk 0:00:51]} 29. Bd5 {[%clk 0:01:53]}  Kg7 {[%clk 0:00:50]} 30. Qf3 {[%clk 0:01:52]}  Qe7 {[%clk 0:00:50]} 31. g3 {[%clk 0:01:52]}  Bd4 {[%clk 0:00:49]} 32. Kg2 {[%clk 0:01:52]}  Qf6 {[%clk 0:00:46]} 33. Qxf6+ {[%clk 0:01:51]}  Kxf6 {[%clk 0:00:47]} 34. f4 {[%clk 0:01:51]}  Bb6 {[%clk 0:00:46]} 35. Kf3 {[%clk 0:01:51]}  Kg7 {[%clk 0:00:46]} 36. g4 {[%clk 0:01:52]}  hxg4+ {[%clk 0:00:46]} 37. hxg4 {[%clk 0:01:44]}  f5 {[%clk 0:00:47]} 1/2-1/2